fUST/lending_fUST_20250314
["ID","MTS","AMOUNT","RATE_DAILY","PERIOD"]
[356096302,1741895453272,-500.0,0.0001452,2]
[356096303,1741895453282,-1332.45,0.0001452,2]
[356096304,1741895453292,-1636.96,0.0001452,2]
[356096305,1741895453301,-4554.61,0.0001452,2]
[356096306,1741895453311,-500.0,0.0001452,2]
[356096307,1741895453321,-500.0,0.0001452,2]
[356096308,1741895453330,-6214.93,0.0001452,2]
[356096309,1741895453413,-500.0,0.0001452,2]
[356096310,1741895453423,-864.97,0.0001452,2]
[356096311,1741895453433,-500.0,0.0001452,2]
[356096312,1741895453445,-500.0,0.0001452,2]
[356096313,1741895453455,-1420.88,0.0001452,2]
[356096314,1741895453464,-2190.28,0.0001452,2]
[356096315,1741895453473,-2950.76,0.0001452,2]
[356096316,1741895453483,-3526.3,0.0001452,2]
[356096317,1741895453492,-500.0,0.0001452,2]
[356096318,1741895453501,-210389.0,0.0001452,2]
[356096319,1741895453511,-2632.72,0.0001452,2]
[356096320,1741895453520,-1162.99,0.0001452,2]
[356096321,1741895453529,-500.0,0.0001452,2]
[356096322,1741895453539,-3048.5,0.0001452,2]
[356096323,1741895453548,-1963.71,0.0001452,2]
[356096324,1741895453558,-2357.94,0.0001452,2]
[356096325,1741895453568,-500.0,0.0001452,2]
[356096326,1741895453578,-2519.23,0.0001452,2]
[356096327,1741895453587,-4374.59,0.0001452,2]
[356096328,1741895453596,-618.04,0.0001452,2]
[356096329,1741895453605,-899.38,0.0001452,2]
[356096330,1741895453614,-528.57242738,0.0001452,2]
[356096331,1741895453624,-500.0,0.0001452,2]
[356096332,1741895453633,-500.0,0.0001452,2]
[356096333,1741895453643,-1679.95,0.0001452,2]
[356096334,1741895453653,-500.0,0.0001452,2]
[356096335,1741895453662,-500.0,0.0001452,2]
[356096336,1741895453675,-500.0,0.0001452,2]
[356096337,1741895453685,-500.0,0.0001452,2]
[356096338,1741895453694,-500.0,0.0001452,2]
[356096339,1741895453704,-500.0,0.0001452,2]
[356096340,1741895453715,-500.0,0.0001452,2]
[356096341,1741895453725,-1770.04,0.0001452,2]
[356096342,1741895453735,-913.15,0.0001452,2]
[356096343,1741895453747,-500.0,0.0001452,2]
[356096344,1741895453758,-744.61,0.0001452,2]
[356096345,1741895453768,-12057.96,0.0001452,2]
[356096346,1741895453777,-500.0,0.0001452,2]
[356096347,1741895453787,-3085.32,0.0001452,2]
[356096348,1741895453796,-500.0,0.0001452,2]
[356096349,1741895453805,-500.0,0.0001452,2]
[356096350,1741895453815,-1618.87,0.0001452,2]
[356096351,1741895453824,-500.0,0.0001452,2]
[356096352,1741895453833,-500.0,0.0001452,2]
[356096353,1741895453842,-500.0,0.0001452,2]
[356096354,1741895453851,-997.3,0.0001452,2]
[356096355,1741895453862,-500.0,0.0001452,2]
[356096356,1741895453871,-7519.49,0.0001452,2]
[356096357,1741895453880,-209.86266238,0.0001452,2]
[356096358,1741895453890,-500.0,0.0001452,2]
[356096359,1741895453902,-2113.91,0.0001452,2]
[356096360,1741895453911,-500.0,0.0001452,2]
[356096361,1741895453920,-500.0,0.0001452,2]
[356096362,1741895453929,-500.0,0.0001452,2]
[356096363,1741895453939,-500.0,0.0001452,2]
[356096364,1741895453948,-500.0,0.0001452,2]
[356096365,1741895453958,-500.0,0.0001452,2]
[356096366,1741895453967,-500.0,0.0001452,2]
[356096367,1741895453976,-249.0743652,0.0001452,2]
[356096368,1741895453986,-6238.03,0.0001452,2]
[356096369,1741895453995,-500.0,0.0001452,2]
[356096370,1741895454004,-587.13,0.0001452,2]
[356096371,1741895454014,-186.36594898,0.0001452,2]
[356096372,1741895454023,-517.5119974,0.0001452,2]
[356096373,1741895454032,-500.0,0.0001452,2]
[356096374,1741895454042,-16438.39,0.0001452,2]
[356096375,1741895454051,-2929.91,0.0001452,2]
[356096376,1741895454061,-500.0,0.0001452,2]
[356096377,1741895454071,-500.0,0.0001452,2]
[356096378,1741895454080,-500.0,0.0001452,2]
[356096379,1741895454090,-640.4,0.0001452,2]
[356096380,1741895454099,-500.0,0.0001452,2]
[356096381,1741895454108,-500.0,0.0001452,2]
[356096382,1741895454118,-500.0,0.0001452,2]
[356096383,1741895454128,-773.7,0.0001452,2]
[356096384,1741895454137,-500.0,0.0001452,2]
[356096385,1741895454148,-765.093538,0.0001452,2]
[356096386,1741895454158,-1407.77,0.0001452,2]
[356096387,1741895454168,-774.61,0.0001452,2]
[356096388,1741895454178,-500.0,0.0001452,2]
[356096389,1741895454187,-765.093538,0.0001452,2]
[356096390,1741895454197,-500.0,0.0001452,2]
[356096391,1741895454207,-500.0,0.0001452,2]
[356096392,1741895454216,-7830.3,0.0001452,2]
[356096393,1741895454226,-500.0,0.0001452,2]
[356096394,1741895454235,-500.0,0.0001452,2]
[356096395,1741895454245,-500.0,0.0001452,2]
[356096396,1741895454255,-500.0,0.0001452,2]
[356096397,1741895454264,-500.0,0.0001452,2]
[356096398,1741895454278,-500.0,0.0001452,2]
[356096399,1741895454289,-9190.56,0.0001452,2]
[356096400,1741895454300,-500.0,0.0001452,2]
[356096401,1741895454309,-1013.49,0.0001452,2]
[356096402,1741895454318,-1982.57,0.0001452,2]
[356096403,1741895454328,-500.0,0.0001452,2]
[356096404,1741895454338,-746.91,0.0001452,2]
[356096405,1741895454348,-3021.39,0.0001452,2]
[356096406,1741895454359,-500.0,0.0001452,2]
[356096407,1741895454368,-500.0,0.0001452,2]
[356096408,1741895454377,-1287.74,0.0001452,2]
[356096409,1741895454387,-4445.03,0.0001452,2]
[356096410,1741895454397,-151.0,0.0001452,2]
[356096411,1741895454407,-775.44,0.0001452,2]
[356096412,1741895454418,-1507.0,0.0001452,2]
[356096413,1741895454428,-500.0,0.0001452,2]
[356096414,1741895454438,-500.0,0.0001452,2]
[356096415,1741895454448,-500.0,0.0001452,2]
[356096416,1741895454458,-500.0,0.0001452,2]
[356096417,1741895454468,-500.0,0.0001452,2]
[356096418,1741895454478,-977.81,0.0001452,2]
[356096419,1741895454488,-1433.65,0.0001452,2]
[356096420,1741895454504,-2099.65,0.0001452,2]
[356096421,1741895454522,-2709.27,0.0001452,2]
[356096422,1741895454538,-924.33,0.0001452,2]
[356096423,1741895454548,-500.0,0.0001452,2]
[356096424,1741895454558,-500.0,0.0001452,2]
[356096425,1741895454567,-1668.01,0.0001452,2]
[356096426,1741895454576,-500.0,0.0001452,2]
[356096427,1741895454585,-739.15,0.0001452,2]
[356096428,1741895454595,-500.0,0.0001452,2]
[356096429,1741895454604,-500.0,0.0001452,2]
[356096430,1741895454613,-3426.15,0.0001452,2]
[356096431,1741895454623,-2374.88,0.0001452,2]
[356096432,1741895454632,-500.0,0.0001452,2]
[356096433,1741895454641,-644.15447953,0.0001452,2]
[356096434,1741895454651,-500.0,0.0001452,2]
[356096435,1741895454660,-500.0,0.0001452,2]
[356096436,1741895454673,-500.0,0.0001452,2]
[356096437,1741895454683,-2993.92,0.0001452,2]
[356096438,1741895454692,-621.35,0.0001452,2]
[356096439,1741895454701,-500.0,0.0001452,2]
[356096440,1741895454710,-500.0,0.0001452,2]
[356096441,1741895454721,-865.09,0.0001452,2]
[356096442,1741895454730,-1460.92,0.0001452,2]
[356096443,1741895454739,-2157.7,0.0001452,2]
[356096444,1741895454748,-500.0,0.0001452,2]
[356096445,1741895454758,-1353.77,0.0001452,2]
[356096446,1741895454768,-715.9,0.0001452,2]
[356096447,1741895454777,-500.0,0.0001452,2]
[356096448,1741895454787,-1894.17,0.0001452,2]
[356096449,1741895454796,-1155.58,0.0001452,2]
[356096450,1741895454805,-1136.53,0.0001452,2]
[356096451,1741895454814,-500.0,0.0001452,2]
[356096452,1741895454823,-500.0,0.0001452,2]
[356096453,1741895454832,-2219.98,0.0001452,2]
[356096454,1741895454841,-1213.44,0.0001452,2]
[356096455,1741895454850,-500.0,0.0001452,2]
[356096456,1741895454860,-500.0,0.0001452,2]
[356096457,1741895454869,-750.45,0.0001452,2]
[356096458,1741895454879,-1078.32,0.0001452,2]
[356096459,1741895454888,-500.0,0.0001452,2]
[356096460,1741895454898,-2029.56,0.0001452,2]
[356096461,1741895454908,-500.0,0.0001452,2]
[356096462,1741895454917,-3019.25,0.0001452,2]
[356096463,1741895454926,-500.0,0.0001452,2]
[356096464,1741895454936,-7964.12,0.0001452,2]
[356096465,1741895454945,-1128.56,0.0001452,2]
[356096466,1741895454954,-670.28,0.0001452,2]
[356096467,1741895454963,-500.0,0.0001452,2]
[356096468,1741895454972,-500.0,0.0001452,2]
[356096469,1741895454981,-1156.29,0.0001452,2]
[356096470,1741895454990,-8340.21,0.0001452,2]
[356096471,1741895454999,-500.0,0.0001452,2]
[356096472,1741895455009,-605.7,0.0001452,2]
[356096473,1741895455018,-885.28,0.0001452,2]
[356096474,1741895455027,-3003.0,0.0001452,2]
[356096475,1741895455037,-719.93,0.0001452,2]
[356096476,1741895455046,-500.0,0.0001452,4]
[356096477,1741895455056,-500.0,0.0001452,2]
[356096478,1741895455065,-1155.93,0.0001452,2]
[356096479,1741895455075,-500.0,0.0001452,2]
[356096480,1741895455084,-500.0,0.0001452,2]
[356096481,1741895455094,-500.0,0.0001452,2]
[356096482,1741895455102,-2762.56,0.0001452,2]
[356096483,1741895455112,-754.97,0.0001452,2]
[356096484,1741895455121,-500.0,0.0001452,2]
[356096485,1741895455130,-500.0,0.0001452,2]
[356096486,1741895455140,-500.0,0.0001452,2]
[356096487,1741895455151,-1070.0,0.0001452,2]
[356096488,1741895455160,-500.0,0.0001452,2]
[356096489,1741895455169,-166.29068954,0.00014521,2]
[356096490,1741895455178,-3794.38944408,0.00014521,2]
[356096491,1741895455187,-1034.74323617,0.00014524,2]
[356096492,1741895455196,-1073.02873591,0.00014579,2]
[356096493,1741895455205,-1112.73079914,0.00014634,2]
[356096494,1741895455215,-1153.9018387,0.00014689,2]
[356096495,1741895455223,-3794.38944408,0.00014728,2]
[356096496,1741895455232,-1800.0,0.00014744,2]
[356096497,1741895455242,-162.380719,0.00014786,2]
[356096498,1741895455251,-500.0,0.00014794,2]
[356096499,1741895455260,-500.0,0.00014794,2]
[356096500,1741895455270,-718.74,0.00014794,2]
[356096501,1741895455279,-500.0,0.00014794,2]
[356096502,1741895455288,-729.98,0.00014794,2]
[356096503,1741895455298,-500.0,0.00014794,2]
[356096504,1741895455307,-592.62,0.00014794,2]
[356096505,1741895455317,-569.25,0.00014794,2]
[356096506,1741895455327,-500.0,0.00014794,2]
[356096507,1741895455336,-500.0,0.00014794,2]
[356096508,1741895455346,-500.0,0.00014794,2]
[356096509,1741895455355,-500.0,0.00014794,2]
[356096510,1741895455364,-500.0,0.00014794,2]
[356096511,1741895455373,-500.0,0.00014794,2]
[356096512,1741895455382,-915.94,0.00014794,2]
[356096513,1741895455392,-500.0,0.00014794,2]
[356096514,1741895455402,-500.0,0.00014794,2]
[356096515,1741895455411,-669.86,0.00014794,2]
[356096516,1741895455421,-500.0,0.00014794,2]
[356096517,1741895455430,-859.55,0.00014794,2]
[356096518,1741895455439,-500.0,0.00014794,2]
[356096519,1741895455448,-500.0,0.00014794,2]
[356096520,1741895455459,-500.0,0.00014794,2]
[356096521,1741895455469,-500.0,0.00014794,2]
[356096522,1741895455478,-515.00353486,0.00014794,2]
[356096523,1741895455487,-500.0,0.00014794,2]
[356096524,1741895455496,-500.0,0.00014794,2]
[356096525,1741895455506,-508.60192291,0.00014794,2]
[356096526,1741895455515,-600.42,0.00014794,2]
[356096527,1741895455524,-500.0,0.00014794,2]
[356096528,1741895455533,-500.0,0.00014794,2]
[356096529,1741895455542,-500.0,0.00014794,2]
[356096530,1741895455552,-500.0,0.00014794,2]
[356096531,1741895455562,-500.0,0.00014794,2]
[356096532,1741895455571,-500.0,0.00014794,2]
[356096533,1741895455581,-500.0,0.00014794,2]
[356096534,1741895455590,-500.0,0.00014794,2]
[356096535,1741895455599,-500.0,0.00014794,2]
[356096536,1741895455609,-500.0,0.00014794,2]
[356096537,1741895455618,-926.41,0.00014794,2]
[356096538,1741895455628,-592.81,0.00014794,2]
[356096539,1741895455637,-1073.35,0.00014794,2]
[356096540,1741895455647,-500.0,0.00014794,2]
[356096541,1741895455657,-500.0,0.00014794,2]
[356096542,1741895455666,-500.0,0.00014794,2]
[356096543,1741895455678,-500.0,0.00014794,2]
[356096544,1741895455687,-260.24563662,0.00014794,2]
[356096545,1741895455696,-500.0,0.00014794,2]
[356096546,1741895455705,-500.0,0.00014794,2]
[356096547,1741895455715,-500.0,0.00014794,2]
[356096548,1741895455725,-802.61,0.00014794,2]
[356096549,1741895455735,-565.91,0.00014794,2]
[356096550,1741895455744,-696.1,0.00014794,2]
[356096551,1741895455755,-670.19,0.00014794,2]
[356096552,1741895455764,-500.0,0.00014794,2]
[356096553,1741895455773,-500.0,0.00014794,2]
[356096554,1741895455782,-1900.02,0.00014794,2]
[356096555,1741895455791,-555.45,0.00014794,2]
[356096556,1741895455801,-500.0,0.00014794,2]
[356096557,1741895455810,-500.0,0.00014794,2]
[356096558,1741895455819,-510.47,0.00014794,2]
[356096559,1741895455828,-500.0,0.00014794,2]
[356096560,1741895455838,-993.78,0.00014794,2]
[356096561,1741895455847,-500.0,0.00014794,2]
[356096562,1741895455857,-500.0,0.00014794,2]
[356096563,1741895455866,-500.0,0.00014794,2]
[356096564,1741895455876,-500.0,0.00014794,2]
[356096565,1741895455885,-500.0,0.00014794,2]
[356096566,1741895455895,-500.0,0.00014794,2]
[356096567,1741895455904,-500.0,0.00014794,2]
[356096568,1741895455913,-449.56923753,0.00014794,2]
[356096569,1741895455922,-1320.95,0.00014794,2]
[356096570,1741895455932,-500.0,0.00014794,2]
[356096571,1741895455942,-1672.28,0.00014794,2]
[356096572,1741895455952,-399.69347519,0.00014794,2]
[356096573,1741895455962,-500.0,0.00014794,2]
[356096574,1741895455971,-500.0,0.00014794,2]
[356096575,1741895455981,-500.0,0.00014794,2]
[356096576,1741895455990,-500.0,0.00014794,2]
[356096577,1741895456000,-985.66,0.00014794,2]
[356096578,1741895456010,-500.0,0.00014794,2]
[356096579,1741895456019,-500.0,0.00014794,2]
[356096580,1741895456029,-500.0,0.00014794,2]
[356096581,1741895456039,-500.0,0.00014794,2]
[356096582,1741895456049,-520.34007501,0.00014794,2]
[356096583,1741895456059,-1120.14,0.00014794,2]
[356096584,1741895456069,-500.0,0.00014794,2]
[356096585,1741895456078,-782.0,0.00014794,2]
[356096586,1741895456088,-1853.38,0.00014794,2]
[356096587,1741895456098,-476.33582064,0.00014794,2]
[356096588,1741895456108,-500.0,0.00014794,2]
[356096589,1741895456117,-500.0,0.00014794,2]
[356096590,1741895456127,-500.0,0.00014794,2]
[356096591,1741895456136,-546.10109554,0.00014794,2]
[356096592,1741895456146,-500.0,0.00014794,2]
[356096593,1741895456156,-1032.23,0.00014794,2]
[356096594,1741895456165,-500.0,0.00014794,2]
[356096595,1741895456175,-500.0,0.00014794,2]
[356096596,1741895456184,-500.0,0.00014794,2]
[356096597,1741895456194,-500.0,0.00014794,2]
[356096598,1741895456204,-919.78,0.00014794,2]
[356096599,1741895456213,-160.96053182,0.00014794,2]
[356096600,1741895456223,-500.0,0.00014794,2]
[356096601,1741895456233,-567.13,0.00014794,2]
[356096602,1741895456242,-500.0,0.00014794,2]
[356096603,1741895456252,-504.76,0.00014794,2]
[356096604,1741895456262,-1477.97,0.00014794,2]
[356096605,1741895456272,-814.92,0.00014794,2]
[356096606,1741895456281,-500.0,0.00014794,2]
[356096607,1741895456291,-716.89,0.00014794,2]
[356096608,1741895456300,-500.0,0.00014794,2]
[356096609,1741895456310,-2435.2,0.00014794,2]
[356096610,1741895456319,-1122.89,0.00014794,2]
[356096611,1741895456329,-500.0,0.00014794,2]
[356096612,1741895456339,-881.46,0.00014794,2]
[356096613,1741895456348,-815.2,0.00014794,2]
[356096614,1741895456358,-500.0,0.00014794,2]
[356096615,1741895456367,-500.0,0.00014794,2]
[356096616,1741895456377,-500.0,0.00014794,2]
[356096617,1741895456387,-500.0,0.00014794,2]
[356096618,1741895456397,-977.86,0.00014794,2]
[356096619,1741895456407,-985.12,0.00014794,2]
[356096620,1741895456417,-500.0,0.00014794,2]
[356096621,1741895456427,-500.0,0.00014794,2]
[356096622,1741895456437,-604.51,0.00014794,2]
[356096623,1741895456447,-797.13,0.00014794,2]
[356096624,1741895456457,-500.0,0.00014794,2]
[356096625,1741895456467,-500.0,0.00014794,2]
[356096626,1741895456478,-900.08,0.00014794,2]
[356096627,1741895456487,-500.0,0.00014794,2]
[356096628,1741895456497,-500.0,0.00014794,2]
[356096629,1741895456507,-500.0,0.00014794,2]
[356096630,1741895456517,-500.0,0.00014794,2]
[356096631,1741895456526,-1033.41,0.00014794,2]
[356096632,1741895456536,-987.13,0.00014794,2]
[356096633,1741895456546,-500.0,0.00014794,2]
[356096634,1741895456555,-500.0,0.00014794,2]
[356096635,1741895456565,-157.90156394,0.00014794,2]
[356096636,1741895456575,-1031.99,0.00014794,2]
[356096637,1741895456584,-574.29,0.00014794,2]
[356096638,1741895456594,-500.0,0.00014794,2]
[356096639,1741895456603,-500.0,0.00014794,2]
[356096640,1741895456613,-500.0,0.00014794,2]
[356096641,1741895456623,-500.0,0.00014794,2]
[356096642,1741895456633,-551.04,0.00014794,2]
[356096643,1741895456642,-500.0,0.00014794,2]
[356096644,1741895456652,-1471.9,0.00014794,2]
[356096645,1741895456661,-500.0,0.00014794,2]
[356096646,1741895456673,-505.09,0.00014794,2]
[356096647,1741895456685,-500.0,0.00014794,2]
[356096648,1741895456694,-1118.78,0.00014794,2]
[356096649,1741895456704,-500.0,0.00014794,2]
[356096650,1741895456715,-500.0,0.00014794,2]
[356096651,1741895456724,-520.60396189,0.00014794,2]
[356096652,1741895456734,-500.0,0.00014794,2]
[356096653,1741895456744,-500.0,0.00014794,2]
[356096654,1741895456755,-500.0,0.00014794,2]
[356096655,1741895456765,-1105.79,0.00014794,2]
[356096656,1741895456774,-500.0,0.00014794,2]
[356096657,1741895456784,-500.0,0.00014794,2]
[356096658,1741895456793,-698.96,0.00014794,2]
[356096659,1741895456803,-500.0,0.00014794,2]
[356096660,1741895456813,-500.0,0.00014794,2]
[356096661,1741895456822,-500.0,0.00014794,2]
[356096662,1741895456831,-500.0,0.00014794,2]
[356096663,1741895456842,-2274.07,0.00014794,2]
[356096664,1741895456852,-500.0,0.00014794,2]
[356096665,1741895456862,-500.0,0.00014794,2]
[356096666,1741895456872,-500.0,0.00014794,2]
[356096667,1741895456882,-1049.97,0.00014794,2]
[356096668,1741895456891,-1181.55,0.00014794,2]
[356096669,1741895456902,-1004.4,0.00014794,2]
[356096670,1741895456911,-500.0,0.00014794,2]
[356096671,1741895456922,-1924.06,0.00014794,2]
[356096672,1741895456931,-500.0,0.00014794,2]
[356096673,1741895456941,-1127.21,0.00014794,2]
[356096674,1741895456951,-1448.48,0.00014794,2]
[356096675,1741895456960,-500.0,0.00014794,2]
[356096676,1741895456970,-1754.72,0.00014794,2]
[356096677,1741895456980,-500.0,0.00014794,2]
[356096678,1741895456990,-677.35,0.00014794,2]
[356096679,1741895457000,-500.0,0.00014794,2]
[356096680,1741895457010,-500.0,0.00014794,2]
[356096681,1741895457021,-500.0,0.00014794,2]
[356096682,1741895457031,-634.41629924,0.00014794,2]
[356096683,1741895457041,-2165.89,0.00014794,2]
[356096684,1741895457052,-1059.57,0.00014794,2]
[356096685,1741895457061,-500.0,0.00014794,2]
[356096686,1741895457071,-500.0,0.00014794,2]
[356096687,1741895457081,-500.0,0.00014794,2]
[356096688,1741895457091,-230.44533989,0.00014794,2]
[356096689,1741895457101,-500.0,0.00014794,2]
[356096690,1741895457111,-2402.59,0.00014794,2]
[356096691,1741895457121,-500.0,0.00014794,2]
[356096692,1741895457131,-500.0,0.00014794,2]
[356096693,1741895457141,-582.96,0.00014794,2]
[356096694,1741895457151,-500.0,0.00014794,2]
[356096695,1741895457162,-500.0,0.00014794,2]
[356096696,1741895457172,-500.0,0.00014794,2]
[356096697,1741895457182,-500.0,0.00014794,2]
[356096698,1741895457191,-1430.69,0.00014794,2]
[356096699,1741895457202,-500.0,0.00014794,2]
[356096700,1741895457212,-500.0,0.00014794,2]
[356096701,1741895457222,-500.0,0.00014794,2]
[356096702,1741895457232,-500.0,0.00014794,2]
[356096703,1741895457242,-740.21,0.00014794,2]
[356096704,1741895457252,-573.0,0.00014794,2]
[356096705,1741895457262,-987.01,0.00014794,2]
[356096706,1741895457272,-500.0,0.00014794,2]
[356096707,1741895457281,-15058.52,0.00014794,2]
[356096708,1741895457291,-500.0,0.00014794,2]
[356096709,1741895457300,-500.0,0.00014794,2]
[356096710,1741895457310,-744.73,0.00014794,2]
[356096711,1741895457320,-500.0,0.00014794,2]
[356096712,1741895457330,-570.25,0.00014794,2]
[356096713,1741895457340,-500.0,0.00014794,2]
[356096714,1741895457350,-500.0,0.00014794,2]
[356096715,1741895457360,-500.0,0.00014794,2]
[356096716,1741895457371,-1830.51,0.00014794,2]
[356096717,1741895457380,-500.0,0.00014794,2]
[356096718,1741895457390,-632.64,0.00014794,2]
[356096719,1741895457400,-11604.78,0.00014794,2]
[356096720,1741895457411,-500.0,0.00014794,2]
[356096721,1741895457421,-1332.45,0.00014794,2]
[356096722,1741895457431,-1636.96,0.00014794,2]
[356096723,1741895457442,-500.0,0.00014794,2]
[356096724,1741895457452,-4554.61,0.00014794,2]
[356096725,1741895457462,-500.0,0.00014794,2]
[356096726,1741895457472,-6214.93,0.00014794,2]
[356096727,1741895457483,-500.0,0.00014794,2]
[356096728,1741895457493,-864.97,0.00014794,2]
[356096729,1741895457503,-500.0,0.00014794,2]
[356096730,1741895457513,-500.0,0.00014794,2]
[356096731,1741895457523,-1420.88,0.00014794,2]
[356096732,1741895457534,-2190.28,0.00014794,2]
[356096733,1741895457544,-2950.76,0.00014794,2]
[356096734,1741895457554,-3526.3,0.00014794,2]
[356096735,1741895457564,-500.0,0.00014794,2]
[356096736,1741895457574,-210389.0,0.00014794,2]
[356096737,1741895457584,-2632.72,0.00014794,2]
[356096738,1741895457594,-1162.99,0.00014794,2]
[356096739,1741895457604,-500.0,0.00014794,2]
[356096740,1741895457614,-3048.5,0.00014794,2]
[356096741,1741895457624,-1963.71,0.00014794,2]
[356096742,1741895457634,-2357.94,0.00014794,2]
[356096743,1741895457645,-500.0,0.00014794,2]
[356096744,1741895457655,-2519.23,0.00014794,2]
[356096745,1741895457665,-4374.59,0.00014794,2]
[356096746,1741895457676,-618.04,0.00014794,2]
[356096747,1741895457687,-899.38,0.00014794,2]
[356096748,1741895457697,-500.0,0.00014794,2]
[356096749,1741895457707,-500.0,0.00014794,2]
[356096750,1741895457719,-1679.95,0.00014794,2]
[356096751,1741895457729,-397.98277309,0.00014794,2]
[356096752,1741895457739,-500.0,0.00014794,2]
[356096753,1741895457749,-500.0,0.00014794,2]
[356096754,1741895457760,-500.0,0.00014794,2]
[356096755,1741895457771,-500.0,0.00014794,2]
[356096756,1741895457781,-500.0,0.00014794,2]
[356096757,1741895457791,-223.0,0.00014794,2]
[356096758,1741895457801,-1770.04,0.00014794,2]
[356096759,1741895457811,-913.15,0.00014794,2]
[356096760,1741895457821,-500.0,0.00014794,2]
[356096761,1741895457830,-744.61,0.00014794,2]
[356096762,1741895457840,-12057.96,0.00014794,2]
[356096763,1741895457850,-500.0,0.00014794,2]
[356096764,1741895457860,-3085.32,0.00014794,2]
[356096765,1741895457870,-500.0,0.00014794,2]
[356096766,1741895457880,-500.0,0.00014794,2]
[356096767,1741895457890,-1618.87,0.00014794,2]
[356096768,1741895457901,-500.0,0.00014794,2]
[356096769,1741895457911,-500.0,0.00014794,2]
[356096770,1741895457920,-500.0,0.00014794,2]
[356096771,1741895457930,-997.3,0.00014794,2]
[356096772,1741895457941,-520.91400355,0.00014794,2]
[356096773,1741895457951,-7519.49,0.00014794,2]
[356096774,1741895457961,-500.0,0.00014794,2]
[356096775,1741895457972,-2113.91,0.00014794,2]
[356096776,1741895457982,-500.0,0.00014794,2]
[356096777,1741895457993,-500.0,0.00014794,2]
[356096778,1741895458003,-500.0,0.00014794,2]
[356096779,1741895458245,-500.0,0.00014794,2]
[356096780,1741895458255,-500.0,0.00014794,2]
[356096781,1741895458264,-500.0,0.00014794,2]
[356096782,1741895458274,-500.0,0.00014794,2]
[356096783,1741895458284,-6238.03,0.00014794,2]
[356096784,1741895458293,-500.0,0.00014794,2]
[356096785,1741895458303,-587.13,0.00014794,2]
[356096786,1741895458314,-500.0,0.00014794,2]
[356096787,1741895458323,-16438.39,0.00014794,2]
[356096788,1741895458333,-2929.91,0.00014794,2]
[356096789,1741895458342,-528.53801763,0.00014794,2]
[356096790,1741895458352,-500.0,0.00014794,2]
[356096791,1741895458361,-500.0,0.00014794,2]
[356096792,1741895458371,-640.4,0.00014794,2]
[356096793,1741895458380,-500.0,0.00014794,2]
[356096794,1741895458390,-500.0,0.00014794,2]
[356096795,1741895458400,-500.0,0.00014794,2]
[356096796,1741895458409,-773.7,0.00014794,2]
[356096797,1741895458419,-500.0,0.00014794,2]
[356096798,1741895458428,-765.093538,0.00014794,2]
[356096799,1741895458437,-1407.77,0.00014794,2]
[356096800,1741895458447,-774.61,0.00014794,2]
[356096801,1741895458457,-500.0,0.00014794,2]